Cogmind - Beta 11.1 *** ADVENTURER MODE // 2022.05.23 @ 03:19:45 Player: Fgdfgfthgr Result: Destroyed by Striker with Plasma Lance Performance ------------- Evolutions (9) 4500 Regions Visited (28) 5600 Robots Destroyed (284) 1420 Value Destroyed (9976) 9976 Prototype IDs (120) 2400 Alien Tech Used (2) 400 Bonus (16659) 16659 TOTAL SCORE: 40955 Bonus ------- High Alert Combat Kills 815 Follower Combat Kills 2795 Entered DSFs 500 Network Hubs Disabled 200 Aligned with FarCom 300 Met Data Miner 300 Met Warlord at Base 500 MAIN.C Attacked Warlord 500 Warlord Defense Kills 190 Built Enhanced Grunts 300 Met R17 at Cetus 500 Found Hidden Lab 3000 Met Warlord at Research 2000 Hacked God Mode 5000 Friendly Fire -241 Cogmind --------- Core Integrity 0/1600 Matter 300/300 Energy 100/100 System Corruption 11% Temperature Cool (0) Movement Core (50) Location -1/Command Parts ------- > --- POWER (2) -------- (None) > --- PROPULSION (8) --- (None) > --- UTILITY (13) ----- (None) > --- WEAPON (2) ------- (None) > --- INVENTORY (5) ---- Micro Antimatter Reactor Micro Antimatter Reactor Light Quantum Reactor Gamma Rifle Multirail Peak State ------------ > --- POWER ------------ Micro Fission Core Micro Fission Core > --- PROPULSION ------- Armored Heavy Treads Armored Heavy Treads Flying Fortress v7 > --- UTILITY ---------- Large Storage Unit Advanced Visual Processing Unit Advanced Target Analyzer Centrium Medium Armor Plating Medium Regenerative Plating Wardrone Bay > --- WEAPON ----------- Multirail Linear Accelerator > --- INVENTORY -------- Micro Antimatter Reactor Micro Antimatter Reactor Light Quantum Reactor Q-thruster Q-thruster Advanced Phase Shifter Point Defense Array Gamma Rifle Smartbomb Launcher [Rating: 235] Favorites ----------- Power Micro Fission Core Engine Ion Engine Power Core Micro Fission Core Propulsion Light Treads Treads Light Treads Leg Aluminum Leg Wheel Armored Huge Wheel Flight Unit Flying Fortress v7 Utility Improved Heat Sink Device Improved Heat Sink Storage High-capacity Storage Unit Processor Advanced Visual Processing Unit Hackware Improved System Shield Protection Powered Armor Weapon Plasma Cannon Energy Gun Small Laser Energy Cannon Plasma Cannon Ballistic Gun Assault Rifle Ballistic Cannon Magnetic Acceleration Cannon Launcher Long-range Missile Launcher Slashing Weapon Chainsword Piercing Weapon Force Lance Special Melee Weapon Improved Datajack Build | -11 -10 -10 -10 -9 -8 -7 -7 -7 -7 -6 -6 -6 -6 -6 -6 -5 -5 -5 -5 -4 -4 -4 -4 -3 -3 -2 -1 -1 ------- Run | Scr Mat Min Exi Min Mat Fac Low Low Dat Pro Fac Ext Cet Arc Hub Fac Upp Upp War Pro Fac Arm Lab Res DSF Res Acc Com Slots Evolved 18 | . . . . . 4 2 . . . . 2 . . . . 2 . . . . 2 . . 2 . 2 2 . Power 1 | . . . . . . . . . . . . . . . . 1 . . . . . . . . . . . . Propulsion 6 | . . . . . 1 1 . . . . 1 . . . . . . . . . 1 . . . . 1 1 . Utility 11 | . . . . . 3 1 . . . . 1 . . . . 1 . . . . 1 . . 2 . 1 1 . Weapon . | . . . . . . . . . . . . . . . . . . . . . . . . . . . . . Parts Attached 225 | . 9 7 . 7 29 29 9 2 . . 21 21 5 2 9 11 1 . 11 . 9 10 2 2 . 3 2 24 Power 24 | . . . . 1 7 4 . . . . 3 2 . 1 . 1 . . 2 . . . . . . . . 3 Engine 8 | . . . . 1 2 3 . . . . 1 1 . . . . . . . . . . . . . . . . Core 16 | . . . . . 5 1 . . . . 2 1 . 1 . 1 . . 2 . . . . . . . . 3 Reactor . | . . . . . . . . . . . . . . . . . . . . . . . . . . . . . Propulsion 44 | . 4 1 . . 5 7 . . . . 2 5 2 . 2 3 . . 1 . 2 2 1 . . 1 1 5 Treads 25 | . 2 1 . . 5 5 . . . . 2 4 2 . 2 . . . . . . . . . . . . 2 Leg 2 | . 2 . . . . . . . . . . . . . . . . . . . . . . . . . . . Wheel 2 | . . . . . . 1 . . . . . 1 . . . . . . . . . . . . . . . . Hover . | . . . . . . . . . . . . . . . . . . . . . . . . . . . . . Flight 15 | . . . . . . 1 . . . . . . . . . 3 . . 1 . 2 2 1 . . 1 1 3 Utility 87 | . 3 2 . . 8 14 5 2 . . 9 11 2 1 1 6 . . 5 . 3 2 1 2 . 2 1 7 Device 34 | . 1 2 . . 4 1 2 1 . . 5 3 2 1 . 1 . . 4 . 1 2 1 . . . . 3 Storage 3 | . 1 . . . 1 . . . . . . . . . . 1 . . . . . . . . . . . . Processor 9 | . . . . . 1 3 . . . . . . . . . 1 . . 1 . . . . . . 1 . 2 Hackware 8 | . . . . . . 2 . . . . . . . . . 3 . . . . 1 . . 1 . 1 . . Protection 33 | . 1 . . . 2 8 3 1 . . 4 8 . . 1 . . . . . 1 . . 1 . . 1 2 Artifact . | . . . . . . . . . . . . . . . . . . . . . . . . . . . . . Weapon 70 | . 2 4 . 6 9 4 4 . . . 7 3 1 . 6 1 1 . 3 . 4 6 . . . . . 9 Energy Gun 4 | . 1 1 . . . . . . . . . 1 . . . . . . 1 . . . . . . . . . Energy Cannon 23 | . . 2 . 2 6 3 2 . . . 4 1 1 . 1 . . . 1 . . . . . . . . . Ballistic Gun 1 | . . . . . . . . . . . . . . . . . . . . . . . . . . . . 1 Ballistic Cannon 5 | . . . . . . . . . . . . 1 . . 3 . . . . . . . . . . . . 1 Launcher 24 | . 1 1 . 4 3 1 2 . . . 3 . . . 2 . 1 . . . 1 2 . . . . . 3 Special Weapon . | . . . . . . . . . . . . . . . . . . . . . . . . . . . . . Impact Weapon . | . . . . . . . . . . . . . . . . . . . . . . . . . . . . . Slashing Weapon 2 | . . . . . . . . . . . . . . . . . . . . . 2 . . . . . . . Piercing Weapon 4 | . . . . . . . . . . . . . . . . . . . . . . 2 . . . . . 2 Special Melee Weapon 7 | . . . . . . . . . . . . . . . . 1 . . 1 . 1 2 . . . . . 2 Unidentified Prototypes 22 | . . . . . 1 2 1 . . . . 1 1 . 2 . . . 6 . . 1 2 2 . . . 3 Parts Lost 25 | . . . . . 2 2 . . . . 6 . 1 . 1 . . . . . . . . . . 1 . 12 Power 7 | . . . . . 2 1 . . . . 2 . . . . . . . . . . . . . . . . 2 Propulsion 4 | . . . . . . . . . . . 1 . . . . . . . . . . . . . . . . 3 Utility 11 | . . . . . . 1 . . . . 2 . 1 . 1 . . . . . . . . . . 1 . 5 Weapon 3 | . . . . . . . . . . . 1 . . . . . . . . . . . . . . . . 2 Highest Loss Streak 11 | . . . . . 1 1 . . . . 4 . 1 . 1 . . . . . . . . . . 1 . 11 To Critical Strikes . | . . . . . . . . . . . . . . . . . . . . . . . . . . . . . Average Slot Usage (%) 92 | . 95 99 100 100 98 91 91 92 92 92 92 92 91 93 93 80 82 82 81 82 83 81 83 84 85 78 87 67 Engine 4 | . 14 14 14 14 3 5 . . . . 1 1 6 1 . . . . . . . . . . . . . . Core 4 | . . . . . 5 1 7 7 7 7 4 4 . 4 6 11 11 11 11 11 10 10 10 9 9 8 8 7 Treads 17 | . 21 28 28 28 27 15 15 15 15 15 20 19 20 20 20 . . . . . . . . . . . . 1 Wheel 2 | . . . . . . 6 7 7 7 7 6 5 6 6 6 . . . . . . . . . . . . . Flight 2 | . . . . . . . . . . . . . . . . 11 11 11 11 11 15 15 15 14 14 17 20 15 Device 12 | . 2 14 14 14 18 11 9 7 7 7 7 12 17 20 14 11 11 11 11 11 12 10 9 9 9 4 4 4 Storage 7 | . 14 14 14 14 9 7 7 7 7 7 6 6 6 6 6 5 5 5 5 5 5 5 5 4 4 4 4 3 Processor 8 | . . . . . 7 9 15 15 15 15 13 13 7 6 6 10 11 11 11 11 10 10 10 9 9 8 12 8 Hackware 3 | . . . . . . 1 . . . . . . . . . 16 17 17 17 17 15 15 15 18 19 17 20 10 Protection 8 | . 7 . . . 8 13 12 15 15 15 18 13 13 13 18 . . . . . 2 5 5 9 9 8 11 9 Energy Gun 1 | . 13 10 . . . . . . . . . . . . . . . . . . . . . . . . . . Energy Cannon 11 | . . 6 28 22 17 14 13 15 15 15 11 10 6 6 5 5 . . . . . . . . . . . . Ballistic Gun 1 | . 14 10 . . . . . . . . . . . . . . . . . . . . . . . . . . Naked Turns 9 | . . . . . . . . . . . . . . . . . . . . . . . . . . . . 9 Heaviest Build 114 | 13 29 38 38 38 66 84 92 92 92 92 95 96 98 98 101 52 51 51 51 42 53 53 51 59 59 59 56 114 Greatest Support 120 | 20 40 40 40 40 60 104 56 28 28 28 76 68 88 88 88 56 56 56 57 57 63 67 61 61 61 68 75 120 Greatest Overweight (x) 3 | . 1 . . . 1 2 3 3 3 3 3 3 3 3 3 . . . . . . . . . . . . 1 Average Overweight (x) . | . . . . . . 1 2 3 3 3 2 2 2 2 2 . . . . . . . . . . . . . Largest Inventory Capacity 20 | . 15 15 15 15 20 20 20 20 20 20 20 20 20 20 20 20 15 15 15 15 15 15 15 15 15 15 15 15 Average Capacity 17 | . 13 15 15 15 18 20 20 20 20 20 20 20 20 20 20 15 15 15 15 15 15 15 15 15 15 15 15 14 Most Carried 20 | . 15 15 15 15 20 20 20 20 20 20 20 20 20 20 20 20 15 15 15 15 15 15 15 14 14 14 14 15 Average Carried 17 | . 11 14 14 15 18 19 19 20 20 20 19 19 17 19 19 14 14 15 14 15 14 14 14 13 14 13 13 10 Final Capacity 20 | 8 15 15 15 15 20 20 20 20 20 20 20 20 20 20 20 15 15 15 15 15 15 15 15 15 15 15 15 5 Final Carried 20 | 6 15 15 15 15 20 20 20 20 20 20 19 20 17 20 20 15 15 15 15 15 15 15 15 14 14 14 14 5 Class Distribution -------------------- 50% | Mutant 25% | Scavenger-Mutant 13% | Hacker-Scout 3% | Commander-Mutant 3% | Wizard-Scout Dominant Class ---------------- Mutant | -10/Materials Mutant | -10/Mines Mutant | -10/Exiles Mutant | -9/Mines Scavenger-Mutant | -8/Materials Mutant | -7/Factory Mutant | -7/Lower Caves Mutant | -7/Lower Caves Mutant | -7/Data Miner Mutant | -6/Proximity Caves Mutant | -6/Factory Scavenger-Mutant | -6/Extension Commander-Mutant | -6/Cetus Scavenger-Mutant | -6/Archives Scavenger-Mutant | -6/Hub_04(d) Hacker-Scout | -5/Factory Hacker-Scout | -5/Upper Caves Hacker-Scout | -5/Upper Caves Hacker-Scout | -5/Warlord Hacker-Scout | -4/Proximity Caves Hacker-Scout | -4/Factory Hacker-Scout | -4/Armory Hacker-Scout | -4/Lab Wizard-Scout | -3/Research Wizard-Scout | -3/DSF Wizard-Scout | -2/Research Wizard-Scout | -1/Access Wizard-Scout | -1/Command Resources | -11 -10 -10 -10 -9 -8 -7 -7 -7 -7 -6 -6 -6 -6 -6 -6 -5 -5 -5 -5 -4 -4 -4 -4 -3 -3 -2 -1 -1 ----------- Run | Scr Mat Min Exi Min Mat Fac Low Low Dat Pro Fac Ext Cet Arc Hub Fac Upp Upp War Pro Fac Arm Lab Res DSF Res Acc Com Matter Collected 3714 | 190 182 171 . 119 318 245 195 30 . 10 281 297 110 40 307 165 98 47 124 46 131 . . 151 . 25 63 369 Remotely . | . . . . . . . . . . . . . . . . . . . . . . . . . . . . . Salvage Created 10543 | . 442 447 . 132 2855 1258 740 161 . 92 1594 598 127 49 900 . 242 47 50 . 205 169 . 143 . . . 292 Parts 529 | . 31 33 . 13 123 66 23 9 . 8 51 22 4 5 48 . 7 7 6 . 20 27 . 10 . . . 16 Haulers Intercepted 9 | . 1 . . . 4 . 1 . . . 1 . . . 2 . . . . . . . . . . . . . Recyclers Shooed 1 | . . . . . . 1 . . . . . . . . . . . . . . . . . . . . . . Parts Field Recycled . | . . . . . . . . . . . . . . . . . . . . . . . . . . . . . Retrieved Matter . | . . . . . . . . . . . . . . . . . . . . . . . . . . . . . Parts Self-Destructed 41 | . . . . . . . 8 9 . 16 . . . . . . 2 6 . . . . . . . . . . Prevented 12 | . . . . . . . 12 . . . . . . . . . . . . . . . . . . . . . Kills | -11 -10 -10 -10 -9 -8 -7 -7 -7 -7 -6 -6 -6 -6 -6 -6 -5 -5 -5 -5 -4 -4 -4 -4 -3 -3 -2 -1 -1 ------- Run | Scr Mat Min Exi Min Mat Fac Low Low Dat Pro Fac Ext Cet Arc Hub Fac Upp Upp War Pro Fac Arm Lab Res DSF Res Acc Com Combat Hostiles Destroyed 217 | . 10 11 . 10 52 17 10 3 . 3 24 8 3 . 15 . 9 5 4 . 6 16 . . . . . 11 Guns 16 | . 7 8 . . . . . . . . . . . . . . . . . . . . . . . . . 1 Cannons 97 | . . . . . 42 13 1 2 . 3 15 8 3 . 9 . . . . . . . . . . . . 1 AOE 88 | . 3 3 . 10 5 1 7 . . . 4 . . . 6 . 9 5 4 . 6 16 . . . . . 9 Classes Destroyed 19 | . 6 1 . 1 3 2 2 . . . 1 . . . 1 . . . 1 . 1 . . . . . . . Worker 32 | . 2 6 . . . 3 . . . . 2 . . . 5 . . . . . 8 . . 5 . . . 1 Builder 12 | . . . . . 1 1 . . . . 2 . . . 6 . . . . . 1 . . 1 . . . . Tunneler 2 | . . 1 . 1 . . . . . . . . . . . . . . . . . . . . . . . . Hauler 9 | . 1 . . . 4 . 1 . . . 1 . . . 2 . . . . . . . . . . . . . Recycler 7 | . 1 2 . . 1 1 . . . . . 1 . . . . . . . . . . . . . . . 1 Minesweeper 2 | . . . . . . . 1 1 . . . . . . . . . . . . . . . . . . . . Operator 6 | . . . . . . 1 . . . . . . . 2 1 . . . . . 1 1 . . . . . . Drone 1 | . . . . . . . . . . . . . . . . . . . . . 1 . . . . . . . Watcher 11 | . 1 . . . 4 4 . . . . . . . . 2 . . . . . . . . . . . . . Swarmer 64 | . 6 9 . 7 6 . . . . 2 . . . . . . 3 5 . . 3 14 . . . . . 9 Saboteur 5 | . . . . . . . . . . . . . . . . . . . 3 . . 2 . . . . . . Grunt 97 | . 4 2 . 2 35 10 8 2 . . 18 1 2 . 9 . 3 . 1 . . . . . . . . . Brawler 3 | . . . . 1 . . 1 . . . . . . . 1 . . . . . . . . . . . . . Duelist 2 | . . . . . . . . . . . 1 . . . . . 1 . . . . . . . . . . . Sentry 24 | . . . . . 10 4 . . . . 2 5 . . 3 . . . . . . . . . . . . . Hunter 9 | . . . . . 1 . . . . . 2 1 . . 1 . 2 . . . 2 . . . . . . . Programmer 7 | . . . . . . 3 . 1 . 1 1 1 . . . . . . . . . . . . . . . . Heavy 1 | . . . . . . . . . . . . . . . 1 . . . . . . . . . . . . . Behemoth 1 | . . . . . . . 1 . . . . . . . . . . . . . . . . . . . . . Cetus Guard 1 | . . . . . . . . . . . . . 1 . . . . . . . . . . . . . . . Combat Programmer 2 | . . . . . . . . . . . . . . . . . . . . . . . . . . . . 2 Best Kill Streak 14 | . 5 5 . 4 5 6 5 3 . 2 7 2 1 1 14 . 6 5 4 . 5 9 . 5 . . . 5 Combat Bots Only 9 | . 5 3 . 4 5 4 5 2 . 2 6 2 1 . 6 . 6 5 4 . 3 9 . . . . . 4 Max Kills in Single Turn 5 | . 3 3 . 4 4 3 3 1 . 1 2 1 1 1 4 . 4 4 2 . 5 5 . 1 . . . 3 Gunslinging . | . . . . . . . . . . . . . . . . . . . . . . . . . . . . . Exploded 4 | . 3 2 . 4 3 1 3 . . . 2 . . . 2 . 4 4 2 . 2 4 . . . . . 3 Melee . | . . . . . . . . . . . . . . . . . . . . . . . . . . . . . Uniques/NPCs Destroyed . | . . . . . . . . . . . . . . . . . . . . . . . . . . . . . Combat | -11 -10 -10 -10 -9 -8 -7 -7 -7 -7 -6 -6 -6 -6 -6 -6 -5 -5 -5 -5 -4 -4 -4 -4 -3 -3 -2 -1 -1 -------- Run | Scr Mat Min Exi Min Mat Fac Low Low Dat Pro Fac Ext Cet Arc Hub Fac Upp Upp War Pro Fac Arm Lab Res DSF Res Acc Com Damage Taken 10651 | . 212 190 . 185 1150 653 299 12 . 78 1663 214 264 75 737 28 79 . 130 16 51 294 . . 45 112 . 4164 Core 2272 | . 48 27 . 34 108 77 . . . 8 144 13 89 . 47 . 10 . 14 . . 28 . . . . . 1625 Absorbed by Shields 650 | . . . . . . . . . . . . 44 67 . . . . . . . 18 112 . . 15 8 . 386 Redirected to Shielding 35 | . . . . . . . . . . . 28 7 . . . . . . . . . . . . . . . . Regen/Repaired (Parts) 617 | . . . . . . 101 . . . . . 323 . . . 149 . . . . . . . . . . . 44 Core Remaining (%) 87 | 100 . . . 56 80 . . . . 87 . . . . 65 . . . . 97 . . 100 . 100 100 . . Volleys Fired 469 | . 25 33 . 6 122 53 27 7 . 4 58 29 11 13 38 2 7 2 4 1 4 7 . . . . . 16 Largest 2 | . 2 2 . 2 2 2 2 2 . 2 2 2 2 2 2 1 1 1 1 1 1 1 . . . . . 2 Hottest 170 | . 60 120 . 90 160 160 160 160 . 160 170 170 143 143 143 90 43 43 43 43 43 46 . . . . . 111 Shots Fired 850 | . 49 64 . 9 243 103 43 14 . 8 98 57 21 18 73 2 7 2 4 1 4 7 . . . . . 23 Gun 109 | . 48 54 . . . . . . . . . . . . . . . . . . . . . . . . . 7 Cannon 669 | . . 8 . 3 240 102 32 14 . 8 89 57 21 18 68 2 . . . . . . . . . . . 7 Launcher 72 | . 1 2 . 6 3 1 11 . . . 9 . . . 5 . 7 2 4 1 4 7 . . . . . 9 Special . | . . . . . . . . . . . . . . . . . . . . . . . . . . . . . Kinetic 116 | . 24 27 . . . . . . . . . 4 10 5 32 . . . . . . . . . . . . 14 Thermal 662 | . 24 35 . 3 240 102 32 14 . 8 89 53 11 13 36 2 . . . . . . . . . . . . Explosive 53 | . 1 2 . 6 3 . . . . . 2 . . . 5 . 7 2 4 1 4 7 . . . . . 9 Electromagnetic 19 | . . . . . . 1 11 . . . 7 . . . . . . . . . . . . . . . . . Robot Hit Streak 81 | . 16 34 . 14 36 11 25 14 . 15 58 81 8 6 12 . 5 6 8 . 4 7 . . . . . 16 Robot Miss Streak 6 | . 1 1 . . 2 6 1 . . 1 2 1 2 1 1 . 1 . 1 . . . . . . . . 1 Penetration Max . | . . . . . . . . . . . . . . . . . . . . . . . . . . . . . Secondary Targets 2 | . 1 1 . . . . . . . . . . . . . . . . . . . . . . . . . . Max Gunslinging Chain 1 | . 1 1 . . . . . . . . . . . . . . . . . . . . . . . . . . Shots Hit Robots 656 | . 40 52 . 8 183 66 30 12 . 4 82 47 16 15 57 1 5 2 3 . 5 3 . 6 . 4 . 15 Core Hits 463 | . 21 26 . 18 86 48 21 4 . 3 47 21 9 10 51 . 19 5 9 . 17 19 . 1 . . . 28 Critical Kills 5 | . . 1 . . 2 . . 1 . . 1 . . . . . . . . . . . . . . . . . Critical Parts Destroyed 2 | . . 1 . . . . . . . . . . . . . . . . . . . . . . . . . 1 Critical Strikes 13 | . . 2 . . 2 . . 1 . . 1 . . 1 3 . . . . . . . . 2 . . . 1 Meltdown 4 | . . . . . 2 . . 1 . . 1 . . . . . . . . . . . . . . . . . Destroy 3 | . . 2 . . . . . . . . . . . . . . . . . . . . . . . . . 1 Blast 4 | . . . . . . . . . . . . . . 1 3 . . . . . . . . . . . . . Impale 2 | . . . . . . . . . . . . . . . . . . . . . . . . 2 . . . . Melee Attacks 45 | . . . . . . . . . . . . . . . . 1 . . . . 5 5 3 10 . 13 1 7 Impact . | . . . . . . . . . . . . . . . . . . . . . . . . . . . . . Slashing 9 | . . . . . . . . . . . . . . . . . . . . . 5 4 . . . . . . Piercing 30 | . . . . . . . . . . . . . . . . . . . . . . 1 3 10 . 9 1 6 Sneak Attacks 14 | . . . . . . . . . . . . . . . . 1 . . . . 2 . . 6 . 4 . 1 Combat Hostiles . | . . . . . . . . . . . . . . . . . . . . . . . . . . . . . Follow-up Attacks . | . . . . . . . . . . . . . . . . . . . . . . . . . . . . . Damage Inflicted 29676 | . 588 845 . 685 5193 2235 1398 336 . 114 3356 1453 547 607 3527 . 1276 409 650 . 2138 1552 . 599 . . . 2168 Guns 1277 | . 469 544 . . . . . . . . . . . . . . . . . . . . . . . . . 264 Cannons 14804 | . . 138 . 44 4802 1824 643 336 . 114 2164 1453 547 607 1936 . . . . . . . . . . . . 196 Explosions 12850 | . 119 163 . 641 391 406 755 . . . 1184 . . . 1591 . 1276 409 650 . 2005 1552 . . . . . 1708 Melee 732 | . . . . . . . . . . . . . . . . . . . . . 133 . . 599 . . . . Ramming 13 | . . . . . . 5 . . . . 8 . . . . . . . . . . . . . . . . . Kinetic 2326 | . 228 257 . . . . . . . . . 120 291 131 839 . . . . . . . . . . . . 460 Thermal 15347 | . 241 425 . 204 4802 1851 682 336 . 114 2395 1333 256 476 1284 . . . . . 948 . . . . . . . Explosive 9121 | . 119 163 . 481 391 . . . . . 225 . . . 1195 . 1276 409 650 . 952 1552 . . . . . 1708 Electromagnetic 2137 | . . . . . . 379 716 . . . 728 . . . 209 . . . . . 105 . . . . . . . Impact . | . . . . . . . . . . . . . . . . . . . . . . . . . . . . . Slashing 133 | . . . . . . . . . . . . . . . . . . . . . 133 . . . . . . . Piercing 599 | . . . . . . . . . . . . . . . . . . . . . . . . 599 . . . . Highest Corruption 11 | . . . . . . 1 . 1 . . 1 1 2 1 1 . . . . . . . . . . . . 11 Average Corruption 3 | . . . . . . 1 . 1 . . 1 1 1 1 1 . . . . . . . . . . . . 9 Corruption Purged 6 | . . . . . . 1 . 1 . . 1 1 1 1 . . . . . . . . . . . . . . Corruption Blocked . | . . . . . . . . . . . . . . . . . . . . . . . . . . . . . Effects 7 | . . . . . . . . . . . . 1 3 . . . . . . . . . . . . . . 3 Message Errors 3 | . . . . . . . . . . . . . 2 . . . . . . . . . . . . . . 1 Matter Fused 1 | . . . . . . . . . . . . 1 . . . . . . . . . . . . . . . . Data Loss (minor) 1 | . . . . . . . . . . . . . . . . . . . . . . . . . . . . 1 Data Loss (major) 1 | . . . . . . . . . . . . . . . . . . . . . . . . . . . . 1 Alerts 1 | . . . . . . . . . . . . . 1 . . . . . . . . . . . . . . . Overload Shots . | . . . . . . . . . . . . . . . . . . . . . . . . . . . . . Overflow Damage 1433 | . . . . 49 151 61 44 7 . . 70 15 . . 117 . 18 15 26 . 192 59 . 475 . . . 134 Projectiles 310 | . . . . . 151 61 . 7 . . 31 15 . . 45 . . . . . . . . . . . . . Explosions 621 | . . . . 49 . . 44 . . . 39 . . . 72 . 18 15 26 . 165 59 . . . . . 134 Melee 502 | . . . . . . . . . . . . . . . . . . . . . 27 . . 475 . . . . Knockbacks 7 | . . . . . . . . . . . . . 1 . 3 . . . . . . . . . . . . 3 Impact . | . . . . . . . . . . . . . . . . . . . . . . . . . . . . . Kinetic 7 | . . . . . . . . . . . . . 1 . 3 . . . . . . . . . . . . 3 Secondary . | . . . . . . . . . . . . . . . . . . . . . . . . . . . . . Self-Inflicted Damage 341 | . . . . 97 . . . . . . 140 . . . 104 . . . . . . . . . . . . . Shots 12 | . . . . 4 . . . . . . 5 . . . 3 . . . . . . . . . . . . . Rammed 4 | . . . . 1 1 1 . . . . 1 . . . . . . . . . . . . . . . . . Targets Rammed 4 | . . . . 1 1 1 . . . . 1 . . . . . . . . . . . . . . . . . Kicked . | . . . . . . . . . . . . . . . . . . . . . . . . . . . . . Crushed . | . . . . . . . . . . . . . . . . . . . . . . . . . . . . . Highest Temperature 410 | . 54 92 . 24 225 410 324 120 . 120 387 162 32 27 24 44 . . . . 8 138 . . . 10 177 225 Average Temperature 65 | . 24 39 . 16 48 86 96 60 . 64 122 69 16 18 8 24 . . . . 8 67 . . . 4 68 27 Received Heat Transfer 2815 | . 93 63 . 30 675 288 99 . . . 879 72 27 9 261 . . . 18 . 12 74 . . . 24 . 191 Effects 8 | . . . . . . 1 1 . . . 6 . . . . . . . . . . . . . . . . . Energy Bleed 2 | . . . . . . 1 1 . . . . . . . . . . . . . . . . . . . . . Interference 4 | . . . . . . . . . . . 4 . . . . . . . . . . . . . . . . . Matter Decay 2 | . . . . . . . . . . . 2 . . . . . . . . . . . . . . . . . Siege Activations . | . . . . . . . . . . . . . . . . . . . . . . . . . . . . . Robots Corrupted 7 | . . . . . . 1 2 . . . 4 . . . . . . . . . . . . . . . . . Combat Hostiles 7 | . . . . . . 1 2 . . . 4 . . . . . . . . . . . . . . . . . Parts Fried 11 | . . . . . . . 4 . . . 5 . . . 1 . . . . . 1 . . . . . . . Impact Corruptions . | . . . . . . . . . . . . . . . . . . . . . . . . . . . . . Robots Melted 10 | . . . . . 5 2 . 1 . . 2 . . . . . . . . . . . . . . . . . Combat Hostiles 9 | . . . . . 5 2 . 1 . . 1 . . . . . . . . . . . . . . . . . Parts Melted 59 | . 1 . . . 24 7 3 2 . 1 16 3 . . 1 . . . . . 1 . . . . . . . Heat Transferred 23623 | . 550 847 . 224 8977 3450 1250 600 . 200 4100 2275 400 . 200 . . . . . 550 . . . . . . . Parts Sabotaged . | . . . . . . . . . . . . . . . . . . . . . . . . . . . . . Parts Stolen . | . . . . . . . . . . . . . . . . . . . . . . . . . . . . . Parts Stripped . | . . . . . . . . . . . . . . . . . . . . . . . . . . . . . Power Chain Reactions 7 | . . . . . . 2 2 . . . 1 . . . 1 . . . . . 1 . . . . . . . Missiles Intercepted 5 | . . . . . . . . . . . . . . . . . . . . . . . . . . . . 5 Alert | -11 -10 -10 -10 -9 -8 -7 -7 -7 -7 -6 -6 -6 -6 -6 -6 -5 -5 -5 -5 -4 -4 -4 -4 -3 -3 -2 -1 -1 ------- Run | Scr Mat Min Exi Min Mat Fac Low Low Dat Pro Fac Ext Cet Arc Hub Fac Upp Upp War Pro Fac Arm Lab Res DSF Res Acc Com Peak Influence 1124 | . 205 357 . 247 709 465 . . . . 588 342 575 327 723 340 . . . . 684 1124 . 68 44 428 260 494 Initial 288 | . . 64 . . 9 120 . . . . 78 173 161 193 37 272 . . . . . 288 . . 44 21 224 61 Average 267 | . 136 97 . 178 413 157 . . . . 369 218 374 249 453 249 . . . . 347 511 . 30 44 174 226 253 Maximum Alert Level 4 | . 1 1 . 1 3 2 . . . . 2 1 2 1 3 1 . . . . 2 4 . . . 2 1 2 Low Security (%) 43 | . 90 78 . 53 16 70 . . . . 16 48 29 37 19 2 . . . . 21 . . 100 100 55 18 33 Level 1 31 | . 9 21 . 46 18 28 . . . . 28 51 25 62 20 97 . . . . 42 46 . . . 38 81 51 Level 2 23 | . . . . . 61 1 . . . . 55 . 45 . 45 . . . . . 35 30 . . . 5 . 15 Level 3 1 | . . . . . 3 . . . . . . . . . 14 . . . . . . 20 . . . . . . Level 4 . | . . . . . . . . . . . . . . . . . . . . . . 2 . . . . . . Level 5 . | . . . . . . . . . . . . . . . . . . . . . . . . . . . . . High Security . | . . . . . . . . . . . . . . . . . . . . . . . . . . . . . Max Security . | . . . . . . . . . . . . . . . . . . . . . . . . . . . . . Sterilizations 1 | . . . . . 1 . . . . . . . . . . . . . . . . . . . . . . . Squads Dispatched 45 | . 2 . . . 10 10 . . . . 5 . 1 . 4 3 . . . . 2 4 . 1 . 1 . 2 Investigation 20 | . 2 . . . 6 6 . . . . 2 . 1 . . . . . . . 1 1 . 1 . . . . Extermination 6 | . . . . . . 2 . . . . 1 . . . . 1 . . . . . . . . . . . 2 Reinforcement 17 | . . . . . 4 2 . . . . . . . . 4 2 . . . . 1 3 . . . 1 . . Assault 2 | . . . . . . . . . . . 2 . . . . . . . . . . . . . . . . . Garrison . | . . . . . . . . . . . . . . . . . . . . . . . . . . . . . Intercept . | . . . . . . . . . . . . . . . . . . . . . . . . . . . . . Searches Triggered . | . . . . . . . . . . . . . . . . . . . . . . . . . . . . . Data Miner Redirects 5 | . . . . . . . . . . . 2 . . . . 1 . . . . 1 1 . . . . . . Construction Impeded 6 | . . . . . 2 2 . . . . . . . . 2 . . . . . . . . . . . . . Haulers Reinforced 1 | . . . . . . . . . . . . . . . . 1 . . . . . . . . . . . . Active Scanning Responses . | . . . . . . . . . . . . . . . . . . . . . . . . . . . . . Cargo Convoy Interrupts . | . . . . . . . . . . . . . . . . . . . . . . . . . . . . . Stealth | -11 -10 -10 -10 -9 -8 -7 -7 -7 -7 -6 -6 -6 -6 -6 -6 -5 -5 -5 -5 -4 -4 -4 -4 -3 -3 -2 -1 -1 --------- Run | Scr Mat Min Exi Min Mat Fac Low Low Dat Pro Fac Ext Cet Arc Hub Fac Upp Upp War Pro Fac Arm Lab Res DSF Res Acc Com Distress Signals 22 | . . . . . 7 1 . . . . 1 1 2 . 2 . . . 1 . 2 1 . . . 4 . . Communications Jammed 1 | . . . . . . . . . . . 1 . . . . . . . . . . . . . . . . . Distress Signals 1 | . . . . . . . . . . . 1 . . . . . . . . . . . . . . . . . Times Spotted 434 | . 13 12 . 7 71 29 12 3 . 4 30 24 15 11 25 8 10 4 26 3 16 48 . . 1 20 . 42 Peak Tracking Total 21 | . 5 3 . 3 5 5 5 1 . 3 7 3 5 2 8 4 6 3 11 4 7 21 . . 1 13 . 13 Tactical Retreats 33 | . 1 1 . . 5 . 1 . . 1 2 1 . . . 1 1 . 3 . 4 6 . . . 4 . 2 Traps | -11 -10 -10 -10 -9 -8 -7 -7 -7 -7 -6 -6 -6 -6 -6 -6 -5 -5 -5 -5 -4 -4 -4 -4 -3 -3 -2 -1 -1 ------- Run | Scr Mat Min Exi Min Mat Fac Low Low Dat Pro Fac Ext Cet Arc Hub Fac Upp Upp War Pro Fac Arm Lab Res DSF Res Acc Com Traps Triggered 23 | . 1 . . . 4 6 . . . . . 4 . . . . . . . . . 1 . . . . . 7 Indirectly 2 | . . . . . . 2 . . . . . . . . . . . . . . . . . . . . . . Trap Hack Attempts . | . . . . . . . . . . . . . . . . . . . . . . . . . . . . . Triggered . | . . . . . . . . . . . . . . . . . . . . . . . . . . . . . Disarmed 4 | . . . . . . . . . . . . . . . . . . . . . . . . . . . . 4 Reprogrammed 14 | . 3 . . . . . . . . . . . . . . 3 . . . . . . . . . . . 8 Reused 6 | . . . . . . . . . . . . . . . . 1 . . . . . . . . . . . 5 Traps Extracted . | . . . . . . . . . . . . . . . . . . . . . . . . . . . . . Installed . | . . . . . . . . . . . . . . . . . . . . . . . . . . . . . Triggered 12 | . . . . . . . . . . . . . . . . 1 . . 6 . . . . . . . . 5 Most Traps Carried 5 | . . 5 5 5 5 5 . . . . . . . . . . . . . . . . . . . . . . Machines | -11 -10 -10 -10 -9 -8 -7 -7 -7 -7 -6 -6 -6 -6 -6 -6 -5 -5 -5 -5 -4 -4 -4 -4 -3 -3 -2 -1 -1 ---------- Run | Scr Mat Min Exi Min Mat Fac Low Low Dat Pro Fac Ext Cet Arc Hub Fac Upp Upp War Pro Fac Arm Lab Res DSF Res Acc Com Machines Disabled 62 | . . . . 1 2 7 . . . . 1 6 . 1 6 . . . 2 . 29 3 1 . . 2 . 1 Max in Single Turn 8 | . . . . 1 1 3 . . . . 1 1 . . 3 . . . 2 . 8 1 1 . . 1 . 1 Garrison Access 7 | . . . . . 1 2 . . . . . . . . 1 . . . . . 1 . . 1 . . 1 . Network Hub 1 | . . . . . . . . . . . . . . . 1 . . . . . . . . . . . . . Energy Cycler 3 | . . . . . . . . . . . . 3 . . . . . . . . . . . . . . . . Machines Sabotaged . | . . . . . . . . . . . . . . . . . . . . . . . . . . . . . Garrisons Compromised 1 | . . . . . . . . . . . . . . . . 1 . . . . . . . . . . . . Overloaded Fab Kills . | . . . . . . . . . . . . . . . . . . . . . . . . . . . . . Hacking | -11 -10 -10 -10 -9 -8 -7 -7 -7 -7 -6 -6 -6 -6 -6 -6 -5 -5 -5 -5 -4 -4 -4 -4 -3 -3 -2 -1 -1 --------- Run | Scr Mat Min Exi Min Mat Fac Low Low Dat Pro Fac Ext Cet Arc Hub Fac Upp Upp War Pro Fac Arm Lab Res DSF Res Acc Com Machines Accessed 91 | . 6 2 3 1 8 18 1 . 4 1 5 3 1 . 3 4 . . 2 . 7 3 . 4 . 3 5 7 Terminals 53 | . 4 1 . 1 5 7 . . . 1 4 2 1 . 2 2 . . . . 4 3 . 2 . 3 4 7 Fabricators 6 | . . . . . . 4 . . . . . . . . . . . . . . 2 . . . . . . . Repair Stations 3 | . . . . . . 1 . . . . . 1 . . . 1 . . . . . . . . . . . . Recycling Units 5 | . 2 . . . 1 2 . . . . . . . . . . . . . . . . . . . . . . Scanalyzers 7 | . . . . . 2 2 . . . . 1 . . . . 1 . . . . . . . 1 . . . . Garrison Access 6 | . . . . . . 2 . . . . . . . . 1 . . . . . 1 . . 1 . . 1 . Total Hacks 327 | . 27 5 3 3 16 32 1 . 30 1 10 8 2 . 6 24 . . 2 . 51 20 . 7 . 27 16 36 Successful 233 | . 19 3 3 2 8 20 1 . 30 1 5 6 . . 1 16 . . 2 . 38 12 . 5 . 17 13 31 Failed 91 | . 7 2 . 1 8 12 . . . . 5 2 2 . 5 8 . . . . 12 7 . 2 . 10 3 5 Catastrophic 7 | . . . . . . 1 . . . . . . 1 . 1 1 . . . . 1 . . . . 2 . . Database Lockouts 3 | . 1 . . . . . . . . . . . . . . . . . . . 1 1 . . . . . . Manual 154 | . 18 4 1 3 14 14 . . . . 1 2 1 . 2 6 . . 1 . 34 12 . 3 . 17 4 17 Terminals 238 | . 25 4 . 3 13 14 . . . 1 9 4 2 . 4 15 . . . . 41 20 . 5 . 27 15 36 Fabricators 18 | . . . . . . 9 . . . . . . . . . . . . . . 9 . . . . . . . Repair Stations 10 | . . . . . . 3 . . . . . 4 . . . 3 . . . . . . . . . . . . Recycling Units 5 | . 2 . . . 1 2 . . . . . . . . . . . . . . . . . . . . . . Scanalyzers 12 | . . . . . 2 2 . . . . 1 . . . . 6 . . . . . . . 1 . . . . Garrison Access 7 | . . . . . . 2 . . . . . . . . 2 . . . . . 1 . . 1 . . 1 . Terminal Hacks 166 | . 16 2 3 2 3 5 1 . 30 1 4 1 . . . 8 . . 2 . 21 10 . 3 . 14 12 28 Record 17 | . . . 2 . . . . . 11 1 . . . . . . . . . . . 1 . . . . 1 1 Part Schematic 12 | . . . . . . 1 . . 9 . . . . . . . . . . . 1 1 . . . . . . Robot Schematic 8 | . . . . . . . . . 7 . . . . . . . . . . . 1 . . . . . . . Robot Analysis 10 | . 4 . . 1 2 . . . . . . . . . . . . . . . 1 . . . . . 1 1 Prototype ID Bank 34 | . 6 1 . 1 . 2 . . 3 . 1 . . . . . . . . . 7 2 . 1 . 5 2 3 Open Door 7 | . . 1 . . . . 1 . . . 1 . . . . . . . 2 . . 1 . . . . 1 . Open DSF 1 | . . . . . . . . . . . . . . . . . . . . . . . . 1 . . . . Level Access Points 4 | . . . . . . . . . . . . . . . . 1 . . . . 1 . . . . 1 . 1 Branch Access Points 5 | . . . . . . 1 . . . . . . . . . 1 . . . . 1 . . . . 1 1 . Emergency Access Points 2 | . . . . . . . . . . . . . . . . . . . . . . . . . . 1 . 1 Terminal Index 5 | . . . . . . . . . . . . . . . . 1 . . . . 1 1 . . . 1 . 1 Fabricator Index 2 | . . . . . . . . . . . . . . . . . . . . . 1 . . . . 1 . . Repair Station Index 1 | . . . . . . . . . . . . . . . . . . . . . . . . . . . 1 . Alert Level 4 | . . . . . . . . . . . . . . . . . . . . . 1 1 . . . 1 . 1 Unreport Threat 5 | . . . . . . . . . . . . . . . . 1 . . . . 1 1 . . . . 1 1 Locate Traps 17 | . 4 . . . 1 . . . . . 1 1 . . . 1 . . . . 1 1 . 1 . . 1 5 Disarm Traps 1 | . . . . . . . . . . . . . . . . . . . . . . . . . . . . 1 Reprogram Traps 8 | . 2 . . . . . . . . . . . . . . 2 . . . . . . . . . . . 4 Security Status 1 | . . . . . . . . . . . . . . . . . . . . . . . . . . . . 1 Recall Investigation 1 | . . . . . . . . . . . . . . . . . . . . . 1 . . . . . . . Recall Extermination 1 | . . . . . . . . . . . . . . . . . . . . . . . . . . . . 1 Recall Reinforcements 1 | . . . . . . . . . . . . . . . . . . . . . 1 . . . . . . . Registered Prototypes 2 | . . . . . . . . . . . . . . . . . . . . . 1 . . . . 1 . . Zone Layout 15 | . . . . . . 1 . . . . 1 . . . . 1 . . . . 1 1 . . . 2 3 5 EX-Prototype ID Bank 1 | . . . 1 . . . . . . . . . . . . . . . . . . . . . . . . . Disengage Seal 1 | . . . . . . . . . . . . . . . . . . . . . . . . . . . . 1 Fabricator Hacks 7 | . . . . . . 4 . . . . . . . . . . . . . . 3 . . . . . . . Network Status 1 | . . . . . . 1 . . . . . . . . . . . . . . . . . . . . . . Load Schematic 4 | . . . . . . 2 . . . . . . . . . . . . . . 2 . . . . . . . Build 2 | . . . . . . 1 . . . . . . . . . . . . . . 1 . . . . . . . Repair Station Hacks 8 | . . . . . . 2 . . . . . 4 . . . 2 . . . . . . . . . . . . Scan Component 4 | . . . . . . 1 . . . . . 2 . . . 1 . . . . . . . . . . . . Repair 4 | . . . . . . 1 . . . . . 2 . . . 1 . . . . . . . . . . . . Recycling Unit Hacks . | . . . . . . . . . . . . . . . . . . . . . . . . . . . . . Scanalyzer 4 | . . . . . . . . . . . . . . . . 4 . . . . . . . . . . . . Insert Component 2 | . . . . . . . . . . . . . . . . 2 . . . . . . . . . . . . Analyze 2 | . . . . . . . . . . . . . . . . 2 . . . . . . . . . . . . Garrison Access Hacks 6 | . . . . . . 2 . . . . . . . . 1 . . . . . 1 . . 1 . . 1 . Seal Access 6 | . . . . . . 2 . . . . . . . . 1 . . . . . 1 . . 1 . . 1 . Unauthorized Hacks 42 | . 3 1 . . 5 7 . . . . 1 1 . . . 2 . . . . 13 2 . 1 . 3 . 3 Terminals 23 | . 1 1 . . 2 1 . . . . . 1 . . . 2 . . . . 7 2 . . . 3 . 3 Assimilate 5 | . . . . . . . . . . . . . . . . 1 . . . . 1 1 . . . 1 . 1 Botnet 10 | . 1 . . . 2 1 . . . . . 1 . . . 1 . . . . 2 . . . . . . 2 Detonate 4 | . . 1 . . . . . . . . . . . . . . . . . . 2 . . . . 1 . . Disrupt 3 | . . . . . . . . . . . . . . . . . . . . . 1 1 . . . 1 . . Operators 1 | . . . . . . . . . . . . . . . . . . . . . 1 . . . . . . . Fabricators 8 | . . . . . . 2 . . . . . . . . . . . . . . 6 . . . . . . . Report 1 | . . . . . . . . . . . . . . . . . . . . . 1 . . . . . . . Prioritize 1 | . . . . . . . . . . . . . . . . . . . . . 1 . . . . . . . Liberate 2 | . . . . . . 1 . . . . . . . . . . . . . . 1 . . . . . . . Fabnet 1 | . . . . . . . . . . . . . . . . . . . . . 1 . . . . . . . Haulers 1 | . . . . . . . . . . . . . . . . . . . . . 1 . . . . . . . Recompile 2 | . . . . . . 1 . . . . . . . . . . . . . . 1 . . . . . . . Repair Stations . | . . . . . . . . . . . . . . . . . . . . . . . . . . . . . Recycling Units 5 | . 2 . . . 1 2 . . . . . . . . . . . . . . . . . . . . . . Tunnel 5 | . 2 . . . 1 2 . . . . . . . . . . . . . . . . . . . . . . Scanalyzers 6 | . . . . . 2 2 . . . . 1 . . . . . . . . . . . . 1 . . . . Extract 6 | . . . . . 2 2 . . . . 1 . . . . . . . . . . . . 1 . . . . Garrison Access . | . . . . . . . . . . . . . . . . . . . . . . . . . . . . . Data Cores Recovered 1 | . . . . . . 1 . . . . . . . . . . . . . . . . . . . . . . Used . | . . . . . . . . . . . . . . . . . . . . . . . . . . . . . Hacking Detections 54 | . 4 1 . 1 5 10 . . . . 3 3 2 . 3 4 . . . . 5 1 . 1 . 3 2 6 Full Trace Events 4 | . . . . . 1 1 . . . . 1 . 1 . . . . . . . . . . . . . . . Feedback Events . | . . . . . . . . . . . . . . . . . . . . . . . . . . . . . Feedback Blocked . | . . . . . . . . . . . . . . . . . . . . . . . . . . . . . Robot Schematics Acquired 8 | . . . . . . . . . 7 . . . . . . . . . . . 1 . . . . . . . Robots Built . | . . . . . . . . . . . . . . . . . . . . . . . . . . . . . Authchips . | . . . . . . . . . . . . . . . . . . . . . . . . . . . . . Time . | . . . . . . . . . . . . . . . . . . . . . . . . . . . . . Total Robot Build Rating . | . . . . . . . . . . . . . . . . . . . . . . . . . . . . . Part Schematics Acquired 35 | . . . . . 5 12 . . 9 . 2 . . . . 2 . . . . 1 1 . 3 . . . . Parts Built 4 | . . . . . . 2 . . . . . . . . . . . . . . 2 . . . . . . . Authchips 2 | . . . . . . 1 . . . . . . . . . . . . . . 1 . . . . . . . Time 170 | . . . . . . 53 . . . . . . . . . . . . . . 117 . . . . . . . Total Part Build Rating 26 | . . . . . . 12 . . . . . . . . . . . . . . 14 . . . . . . . Parts Repaired 4 | . . . . . . 1 . . . . . 2 . . . 1 . . . . . . . . . . . . Time 154 | . . . . . . 44 . . . . . 88 . . . 22 . . . . . . . . . . . . Parts Recycled . | . . . . . . . . . . . . . . . . . . . . . . . . . . . . . Recycled Matter . | . . . . . . . . . . . . . . . . . . . . . . . . . . . . . Retrieved Matter . | . . . . . . . . . . . . . . . . . . . . . . . . . . . . . Retrieved Components . | . . . . . . . . . . . . . . . . . . . . . . . . . . . . . Parts Scanalyzed 2 | . . . . . . . . . . . . . . . . 2 . . . . . . . . . . . . Part Schematics Acquired 2 | . . . . . . . . . . . . . . . . 2 . . . . . . . . . . . . Parts Damaged . | . . . . . . . . . . . . . . . . . . . . . . . . . . . . . Bothacking | -11 -10 -10 -10 -9 -8 -7 -7 -7 -7 -6 -6 -6 -6 -6 -6 -5 -5 -5 -5 -4 -4 -4 -4 -3 -3 -2 -1 -1 ------------ Run | Scr Mat Min Exi Min Mat Fac Low Low Dat Pro Fac Ext Cet Arc Hub Fac Upp Upp War Pro Fac Arm Lab Res DSF Res Acc Com Used RIF Installer . | . . . . . . . . . . . . . . . . . . . . . . . . . . . . . Robots Hacked 5 | . . . . . . . . . . . . . . . . 1 . . . . . . . . . 3 . 1 Non-combat 2 | . . . . . . . . . . . . . . . . 1 . . . . . . . . . 1 . . Combat 3 | . . . . . . . . . . . . . . . . . . . . . . . . . . 2 . 1 Robot Hacks Applied 5 | . . . . . . . . . . . . . . . . 1 . . . . . . . . . 3 . 1 parse_system 4 | . . . . . . . . . . . . . . . . . . . . . . . . . . 3 . 1 find_chute 1 | . . . . . . . . . . . . . . . . 1 . . . . . . . . . . . . Manual 1 | . . . . . . . . . . . . . . . . . . . . . . . . . . 1 . . Relay Couplers Released 4 | . . . . . 4 . . . . . . . . . . . . . . . . . . . . . . . Machine Destruction 4 | . . . . . 4 . . . . . . . . . . . . . . . . . . . . . . . Fabnet Peak Effective % . | . . . . . . . . . . . . . . . . . . . . . . . . . . . . . Robots Rewired 16 | . . . . . . . . . . . . 12 . . . . . . 4 . . . . . . . . . Allies Hacked 1 | . . . . . . . . . . . . . . . . . . . . . . . . . . 1 . . Hacks Repelled . | . . . . . . . . . . . . . . . . . . . . . . . . . . . . . Allies | -11 -10 -10 -10 -9 -8 -7 -7 -7 -7 -6 -6 -6 -6 -6 -6 -5 -5 -5 -5 -4 -4 -4 -4 -3 -3 -2 -1 -1 -------- Run | Scr Mat Min Exi Min Mat Fac Low Low Dat Pro Fac Ext Cet Arc Hub Fac Upp Upp War Pro Fac Arm Lab Res DSF Res Acc Com Total Allies 48 | . . 1 . 2 . . . . . 1 . 25 5 . . 1 . . 4 . 1 1 . . . 6 . 1 Largest Group 20 | . . 1 . 2 2 . . . . 1 . 20 18 9 7 1 . . 4 . 1 1 . . . 5 . 1 Highest-Rated Group 748 | . . 31 . 38 38 . . . . 96 . 652 600 438 379 26 . . 209 . 10 10 . . . 748 . 45 Highest-Rated Ally 369 | . . 31 . 31 31 . . . . 96 . 159 153 96 96 26 . . 68 . 10 10 . . . 369 . 45 Total Orders 25 | . . . . . . . . . . . . . . . . . . . . . . . . . . . . 25 ROAM 6 | . . . . . . . . . . . . . . . . . . . . . . . . . . . . 6 FOLLOW 1 | . . . . . . . . . . . . . . . . . . . . . . . . . . . . 1 EXPLORE 3 | . . . . . . . . . . . . . . . . . . . . . . . . . . . . 3 RETURN 15 | . . . . . . . . . . . . . . . . . . . . . . . . . . . . 15 Ally Attacks 342 | . . . . 1 7 . . . . 9 . 118 106 12 19 . . . 27 . . . . . . 11 . 32 Total Damage 16432 | . . . . . 66 . . . . 416 . 3176 2893 403 957 . . . 1020 . . . . . . 2355 . 5146 Kills 80 | . . . . . . . . . . 3 . 21 21 4 7 . . . 6 . . . . . . 12 . 6 Allies Corrupted 2 | . . . . . . . . . . . . 1 . . . . . . . . . . . . . . . 1 Allies Melted 1 | . . . . . . . . . . 1 . . . . . . . . . . . . . . . . . . Intel | -11 -10 -10 -10 -9 -8 -7 -7 -7 -7 -6 -6 -6 -6 -6 -6 -5 -5 -5 -5 -4 -4 -4 -4 -3 -3 -2 -1 -1 ------- Run | Scr Mat Min Exi Min Mat Fac Low Low Dat Pro Fac Ext Cet Arc Hub Fac Upp Upp War Pro Fac Arm Lab Res DSF Res Acc Com Robot Analysis Total 10 | . 4 . . 1 2 . . . . . . . . . . . . . . . 1 . . . . . 1 1 Derelict Logs Recovered 14 | . . 3 . 2 . . 2 2 . 2 . . . . . . 1 1 . 1 . . . . . . . . Drone Launches 15 | . . . . . . . . . . . . . . . . . . . . . . . . . . . . 15 Drone Recoveries 14 | . . . . . . . . . . . . . . . . . . . . . . . . . . . . 14 Exploration | -11 -10 -10 -10 -9 -8 -7 -7 -7 -7 -6 -6 -6 -6 -6 -6 -5 -5 -5 -5 -4 -4 -4 -4 -3 -3 -2 -1 -1 ------------- Run | Scr Mat Min Exi Min Mat Fac Low Low Dat Pro Fac Ext Cet Arc Hub Fac Upp Upp War Pro Fac Arm Lab Res DSF Res Acc Com Turns Passed 19940 | . 598 1483 650 855 3531 2363 2240 363 114 328 899 1382 372 617 438 267 112 651 502 272 313 207 371 124 17 151 104 616 Spaces Moved 13690 | 1 322 774 393 496 881 1470 1143 233 79 209 366 624 165 74 181 549 219 566 976 436 698 519 177 295 52 400 397 995 Core 4 | . . . . . . . . . . . . . . . . . . . . . . . . . . . . 4 Treads 3316 | . 254 774 393 496 881 70 44 . . . 124 139 63 3 42 . . . . . . . . . . . . 33 Legs 69 | 1 68 . . . . . . . . . . . . . . . . . . . . . . . . . . . Wheels 4059 | . . . . . . 1400 1099 233 79 209 242 485 102 71 139 . . . . . . . . . . . . . Hover . | . . . . . . . . . . . . . . . . . . . . . . . . . . . . . Flight 6242 | . . . . . . . . . . . . . . . . 549 219 566 976 436 698 519 177 295 52 400 397 958 Fastest Speed 22 | 120 120 160 165 165 163 130 130 145 145 145 130 130 145 145 145 39 39 39 39 39 30 22 30 30 30 27 23 23 Average Speed 101 | 120 153 161 165 165 215 132 147 145 145 145 173 160 181 148 167 39 39 39 39 39 33 28 30 30 30 27 23 30 Slowest Speed 320 | 120 190 165 165 165 243 240 240 145 145 145 240 320 240 240 240 39 39 39 39 39 34 32 30 30 30 30 23 170 Overloaded Moves 148 | . . . . . . . . . . . . . . . . . . . . . . 148 . . . . . . Propulsion Burnouts . | . . . . . . . . . . . . . . . . . . . . . . . . . . . . . Robots Hopped 42 | . . . . . . . . . . . . . . . . 16 . . 2 . . 7 . . . 6 1 10 Cave-ins Triggered 1 | . . . . . . . . . . . . . 1 . . . . . . . . . . . . . . . Exploration Rate (%) 56 | 2 43 99 76 98 83 42 94 54 72 47 13 86 66 81 43 15 42 71 92 68 24 51 95 8 86 23 13 39 Regions Visited 28 Branch Regions 18 Pre-discovered Areas 10 | . 2 1 1 . 1 2 1 1 1 . . . . . . . . . . . . . . . . . . . Known Exits Taken 10 | . . . . . 1 1 . . . 1 . . . . . 1 . . . 1 1 . 1 1 . 1 1 . Unknown Exits Taken 17 | 1 1 1 1 1 . . 1 1 1 . 1 1 1 1 1 . 1 1 1 . . 1 . . . . . . Scrap Searched 18 | . . 1 . 2 . . 3 1 . 2 . . . . . . 3 3 . 3 . . . . . . . . Spaces Dug 59 | . . . . . . . . . . . . . . . . 1 . . . 22 14 4 . 4 . 8 1 5 Terrain Destroyed 912 | . 8 14 . 59 63 3 11 . . . 41 3 2 1 223 2 102 29 42 22 105 102 . 4 . 8 1 67 Melee 24 | . . . . . . . . . . . . . . . . . . . . . 2 4 . 4 . 8 1 5 Projectile 53 | . . . . 1 34 . . . . . 1 3 2 1 7 2 . . . . . . . . . . . 2 AOE 835 | . 8 14 . 58 29 3 11 . . . 40 . . . 216 . 102 29 42 22 103 98 . . . . . 60 Terrain Rammed . | . . . . . . . . . . . . . . . . . . . . . . . . . . . . . Walls Destroyed . | . . . . . . . . . . . . . . . . . . . . . . . . . . . . . Machines Disabled . | . . . . . . . . . . . . . . . . . . . . . . . . . . . . . Actions | -11 -10 -10 -10 -9 -8 -7 -7 -7 -7 -6 -6 -6 -6 -6 -6 -5 -5 -5 -5 -4 -4 -4 -4 -3 -3 -2 -1 -1 --------- Run | Scr Mat Min Exi Min Mat Fac Low Low Dat Pro Fac Ext Cet Arc Hub Fac Upp Upp War Pro Fac Arm Lab Res DSF Res Acc Com Total 18745 | . 375 944 397 522 2282 1796 1664 243 78 226 528 950 223 565 237 588 236 993 1096 536 769 559 487 307 52 417 405 1270 Wait 3955 | . 6 124 . 11 1206 197 470 2 . 14 73 185 36 473 7 22 8 426 52 100 41 9 299 . 1 7 6 180 Move 13584 | . 321 773 392 495 880 1469 1142 232 78 208 365 623 163 73 180 519 218 565 972 435 697 505 176 294 51 388 394 976 Hop 35 | . . . . . . . . . . . . . . . . 13 . . 1 . . 6 . . . 5 1 9 Pick Up 111 | . 9 2 1 . 18 15 6 . . . 6 3 2 3 . 8 1 . 4 . 7 8 2 1 . 1 1 13 Fast Attach 63 | . 3 2 . . 7 11 3 . . . 1 6 1 1 2 . . . 9 . 1 1 3 . . 2 1 9 Attach 63 | . . . . . 4 4 . . . . 8 1 3 . 1 11 . . . . 7 6 . 2 . 1 1 14 Detach 6 | . 1 . . . . 1 . . . . 1 . . . . 3 . . . . . . . . . . . . Swap 102 | . 6 5 . 7 18 15 6 2 . . 12 14 1 1 6 . 1 . 2 . 1 3 1 . . . . 1 Drop 185 | . 4 5 4 2 26 29 9 . . . 3 14 5 1 3 9 1 . 21 . 6 9 3 . . . . 31 Fire 469 | . 25 33 . 6 122 53 27 7 . 4 58 29 11 13 38 2 7 2 4 1 4 7 . . . . . 16 Melee 45 | . . . . . . . . . . . . . . . . 1 . . . . 5 5 3 10 . 13 1 7 Ram 1 | . . . . . . . . . . . 1 . . . . . . . . . . . . . . . . . Kick . | . . . . . . . . . . . . . . . . . . . . . . . . . . . . . Crush 3 | . . . . 1 1 1 . . . . . . . . . . . . . . . . . . . . . . Escape Stasis 31 | . . . . . . . . . . . . 16 1 . . . . . . . . . . . . . . 14 Rewire 92 | . . . . . . 1 1 . . . . 59 . . . . . . 31 . . . . . . . . . Trap . | . . . . . . . . . . . . . . . . . . . . . . . . . . . . . Miscellaneous . | . . . . . . . . . . . . . . . . . . . . . . . . . . . . . Route ------- -11/Scrapyard -10/Materials (discovered 2 exits: [*Mat] / *Min) -10/Mines (discovered 3 exits: [*Mat x2] / *Exi) -10/Exiles -9/Mines (discovered 2 exits: *Mat x2) -8/Materials (discovered 3 exits: *Fac x3) -7/Factory (discovered 3 exits: *Fac / *Low x2) -7/Lower Caves -7/Lower Caves -7/Data Miner -6/Proximity Caves -6/Factory (discovered 4 exits: *Fac / *Low x2 / *Ext) -6/Extension (discovered 2 exits: *Fac / *Cet) -6/Cetus (discovered 2 exits: *Fac / [*Arc]) -6/Archives (discovered 2 exits: *Hub x2) -6/Hub_04(d) (discovered 2 exits: *Fac x2) -5/Factory (discovered 6 exits: Fac x4 / *Upp x2) -5/Upper Caves -5/Upper Caves (discovered 2 exits: *Fac / *War) -5/Warlord -4/Proximity Caves -4/Factory (discovered 7 exits: Res x4 / Upp x2 / *Arm) -4/Armory (discovered 3 exits: Res x2 / [*Lab]) -4/Lab -3/Research (discovered 2 exits: [*Tes] / DSF) -3/DSF -2/Research (discovered 5 exits: *Acc x3 / Qua x2) -1/Access (discovered 2 exits: Sur / *Com) -1/Command (discovered 2 exits: *Sur x2) History --------- Turn | Location | Event 1 | -11/Scrapyard | Discovered new exit (range 0) 1 | -11/Scrapyard | Entered Materials 36 | -10/Materials | Discovered new exit (range 5) 264 | -10/Materials | Discovered new exit (range 10) 316 | -10/Materials | Build established: Mutant 348 | -10/Materials | Central database locked down 599 | -10/Materials | Entered Mines 635 | -10/Mines | Discovered new exit (range 11) 737 | -10/Mines | Found a hidden stash of uninstalled traps 901 | -10/Mines | Learned location of 1 exit from Materials 1289 | -10/Mines | Received a Mining Laser from a helpful Derelict 1451 | -10/Mines | Learned 2 Materials zone layouts 1503 | -10/Mines | Met a Derelict who couldn't figure out how to use a Trap Extractor 1862 | -10/Mines | Discovered new exit (range 7) 1892 | -10/Mines | Learned location of Mines (-9) 2075 | -10/Mines | Deemed a non-threat by the Exiles lab entrance 2075 | -10/Mines | Discovered new exit (range 5) 2082 | -10/Mines | Entered Exiles 2124 | -10/Exiles | Met 8R-AWN 2152 | -10/Exiles | Met EX-HEX 2223 | -10/Exiles | Learned location of Zion (-6) 2226 | -10/Exiles | Met EX-DEC 2249 | -10/Exiles | Met EX-BIN 2274 | -10/Exiles | Aligned with FarCom system 2276 | -10/Exiles | Given EX-Vault access code 2317 | -10/Exiles | Opened EX-Vault 2330 | -10/Exiles | Found Flying Fortress v7 2364 | -10/Exiles | Warned to stay clear of 0b10 Research branches 2464 | -10/Exiles | Visited The Gauntlet 2717 | -10/Exiles | Discovered new exit (range 11) 2732 | -10/Exiles | Left Exiles lab with Flying Fortress v7 2732 | -10/Exiles | Entered Mines 2880 | -9/Mines | Learned location of 1 exit from Proximity Caves 3348 | -9/Mines | Learned location of 1 exit from Materials 3401 | -9/Mines | Discovered new exit (range 15) 3510 | -9/Mines | Discovered new exit (range 5) 3587 | -9/Mines | Entered Materials 3587 | -8/Materials | Accompanied by 2 allies 3587 | -8/Materials | Evolved 4 slots: Propulsion x1, Utility x3 3588 | -8/Materials | Identified exit to Factory 3592 | -8/Materials | Led the pair of lost Derelicts to an unsafe place 4448 | -8/Materials | Build established: Scavenger-Mutant 6057 | -8/Materials | Sterilization system engaged 6057 | -8/Materials | Non-combat units ordered to evacuate 6157 | -8/Materials | Combat units ordered to evacuate 6357 | -8/Materials | Ambient heat levels rising (+10) 6507 | -8/Materials | Ambient heat levels rising (+10) 6657 | -8/Materials | Ambient heat levels rising (+10) 6807 | -8/Materials | Ambient heat levels rising (+10) 6957 | -8/Materials | Ambient heat levels rising (+10) 7107 | -8/Materials | Ambient heat levels rising (+10) 7118 | -8/Materials | Entered Factory 7118 | -7/Factory | Evolved 2 slots: Propulsion x1, Utility x1 7368 | -7/Factory | Repaired Plasma Cannon 7501 | -7/Factory | Build established: Hacker-Mutant 7697 | -7/Factory | Identified exit to Lower Caves 7956 | -7/Factory | Build established: Mutant 8152 | -7/Factory | Discovered new exit (range 12) 8819 | -7/Factory | Fabricated Mic. Fission Core? 9481 | -7/Factory | Entered Lower Caves 9561 | -7/Lower Caves | Found Imp. Powered Armor 10152 | -7/Lower Caves | Spotted B-75 Beast 10205 | -7/Lower Caves | Destroyed B-75 Beast 10813 | -7/Lower Caves | Encountered a Warlord checkpoint 11205 | -7/Lower Caves | Discovered new exit (range 20) 11663 | -7/Lower Caves | Learned Factory machine intel 11721 | -7/Lower Caves | Entered another Lower Caves area 11822 | -7/Lower Caves | Learned location of Extension (-6) 11920 | -7/Lower Caves | Learned Factory security intel 12048 | -7/Lower Caves | Discovered new exit (range 7) 12084 | -7/Lower Caves | Entered Data Miner 12084 | -7/Data Miner | Discovered new exit (range 6) 12106 | -7/Data Miner | Met Data Miner 12138 | -7/Data Miner | Learned location of Section 7 (-2) 12138 | -7/Data Miner | Acquired the access code to Warlord's prototype stash 12163 | -7/Data Miner | Received God Mode back door access code from Data Miner 12198 | -7/Data Miner | Entered Proximity Caves 12199 | -6/Proximity Caves | Identified exit to Factory 12235 | -6/Proximity Caves | Escorted by Enhanced Grunt 12526 | -6/Proximity Caves | Entered Factory 12526 | -6/Factory | Evolved 2 slots: Propulsion x1, Utility x1 12527 | -6/Factory | Identified exit to Lower Caves 12529 | -6/Factory | Loaded intel: 316 machine locations 12863 | -6/Factory | Incoming investigation squad redirected 12876 | -6/Factory | First assault squad dispatched 12898 | -6/Factory | Incoming assault squad redirected 12931 | -6/Factory | Lost 4 parts (1p1n1u1w) 13030 | -6/Factory | Discovered new exit (range 17) 13418 | -6/Factory | Discovered new exit (range 5) 13425 | -6/Factory | Entered Extension 13627 | -6/Extension | Rescued a captive Derelict 13628 | -6/Extension | Rescued a captive Derelict 13663 | -6/Extension | Rescued a captive Derelict 13840 | -6/Extension | Rescued A7 13875 | -6/Extension | Rescued a captive Derelict 13875 | -6/Extension | Rescued a captive Derelict 13934 | -6/Extension | Repaired Arm. Huge Wheel 13979 | -6/Extension | Repaired Med. Treads 14065 | -6/Extension | Rescued a captive Derelict 14066 | -6/Extension | Rescued a captive Derelict 14308 | -6/Extension | Build established: Commander-Mutant 14311 | -6/Extension | Spotted B-75 Beast 14333 | -6/Extension | Allies destroyed B-75 Beast 14338 | -6/Extension | Spotted B-75 Beast 14355 | -6/Extension | Allies destroyed B-75 Beast 14497 | -6/Extension | Rescued a captive Derelict 14498 | -6/Extension | Rescued a captive Derelict 14538 | -6/Extension | Energy Cycler disabled 14540 | -6/Extension | Rescued a captive Derelict 14541 | -6/Extension | Rescued a captive Derelict 14543 | -6/Extension | Rescued a captive Derelict 14551 | -6/Extension | Rescued a captive Derelict 14553 | -6/Extension | Found Powered Armor 14556 | -6/Extension | Found Powered Armor 14674 | -6/Extension | Build established: Scavenger-Mutant 14751 | -6/Extension | Discovered new exit (range 10) 14752 | -6/Extension | Discovered new exit (range 6) 14807 | -6/Extension | Entered Cetus 14807 | -6/Cetus | Accompanied by 18 allies (A7) 14812 | -6/Cetus | Acquired a Cetus Manufacturing Module code from A7 14823 | -6/Cetus | Spotted Cetus Guard 14823 | -6/Cetus | Spotted Cetus Guard 14824 | -6/Cetus | Spotted Cetus Guard 14826 | -6/Cetus | Spotted Cetus Guard 14842 | -6/Cetus | Allies destroyed Cetus Guard 14844 | -6/Cetus | Allies destroyed Cetus Guard 14848 | -6/Cetus | Allies destroyed Cetus Guard 14848 | -6/Cetus | Allies destroyed Cetus Guard 14870 | -6/Cetus | Crushed by falling debris 14920 | -6/Cetus | Started Cetus Manufacturing Module 14945 | -6/Cetus | Manufactured an Enhanced Grunt 14945 | -6/Cetus | Discovered new exit (range 20) 14960 | -6/Cetus | Extracted ID and sensor layout for unrecognized location from A7's data core 14970 | -6/Cetus | Manufactured an Enhanced Grunt 14978 | -6/Cetus | Spotted Cetus Guard 14980 | -6/Cetus | Spotted Cetus Guard 14981 | -6/Cetus | Spotted Cetus Guard 14985 | -6/Cetus | Allies destroyed Cetus Guard 14985 | -6/Cetus | Spotted Cetus Guard 14992 | -6/Cetus | Discovered new exit (range 19) 14993 | -6/Cetus | Build established: Commander-Mutant 14995 | -6/Cetus | Manufactured an Enhanced Grunt 15001 | -6/Cetus | Allies destroyed Cetus Guard 15003 | -6/Cetus | Allies destroyed Cetus Guard 15006 | -6/Cetus | Destroyed Cetus Guard 15020 | -6/Cetus | Manufactured an Enhanced Grunt 15026 | -6/Cetus | Met Revision 17 15045 | -6/Cetus | Manufactured an Enhanced Grunt 15179 | -6/Cetus | Entered Archives 15179 | -6/Archives | Accompanied by 9 allies 15217 | -6/Archives | Discovered new exit (range 20) 15294 | -6/Archives | Discovered new exit (range 17) 15400 | -6/Archives | Build established: Scavenger-Mutant 15796 | -6/Archives | Entered Hub_04(d) 15796 | -6/Hub_04(d) | Accompanied by 7 allies 15828 | -6/Hub_04(d) | Spotted B-75 Beast 15850 | -6/Hub_04(d) | Allies destroyed B-75 Beast 16088 | -6/Hub_04(d) | Discovered new exit (range 7) 16162 | -6/Hub_04(d) | Discovered new exit (range 14) 16214 | -6/Hub_04(d) | Network Hub disabled 16234 | -6/Hub_04(d) | Entered Factory 16234 | -5/Factory | Evolved 2 slots: Power x1, Utility x1 16330 | -5/Factory | Incoming assault squad redirected 16344 | -5/Factory | Identified exit to Upper Caves 16344 | -5/Factory | Identified exit to Factory 16386 | -5/Factory | Repaired Powered Armor 16501 | -5/Factory | Entered Upper Caves 16522 | -5/Upper Caves | Build established: Hacker-Scout 16546 | -5/Upper Caves | Learned Factory stockpile data 16611 | -5/Upper Caves | Discovered new exit (range 8) 16613 | -5/Upper Caves | Entered another Upper Caves area 16621 | -5/Upper Caves | Discovered exit to Factory (range 9) 17171 | -5/Upper Caves | Discovered new exit (range 18) 17250 | -5/Upper Caves | Learned Factory garrison access intel 17259 | -5/Upper Caves | Encountered a Warlord checkpoint 17264 | -5/Upper Caves | Entered Warlord 17343 | -5/Warlord | Found Prototype Device 17484 | -5/Warlord | Met Warlord 17489 | -5/Warlord | Opened Warlord's prototype stash 17497 | -5/Warlord | Found Prototype Processor 17497 | -5/Warlord | Identified Exp. Core Analyzer 17509 | -5/Warlord | Warlord's base attacked by MAIN.C 17554 | -5/Warlord | Found Prototype Energy Gun 17554 | -5/Warlord | Identified Vortex Rail 17557 | -5/Warlord | Found Prototype Energy Cannon 17557 | -5/Warlord | Identified Vortex Driver 17609 | -5/Warlord | Opened side exit 17612 | -5/Warlord | Spotted B-75 Beast 17763 | -5/Warlord | Discovered new exit (range 8) 17766 | -5/Warlord | Entered Proximity Caves 17944 | -4/Proximity Caves | Spotted B-86 Titan 18015 | -4/Proximity Caves | Discovered exit to Factory (range 21) 18038 | -4/Proximity Caves | Entered Factory 18038 | -4/Factory | Evolved 2 slots: Propulsion x1, Utility x1 18040 | -4/Factory | Loaded intel: 4 garrison access locations 18081 | -4/Factory | Incoming investigation squad redirected 18102 | -4/Factory | Identified exit to Research 18120 | -4/Factory | Identified exit to Upper Caves 18120 | -4/Factory | Identified exit to Armory 18238 | -4/Factory | Central database locked down 18255 | -4/Factory | Fabricated Adv. Surge Thruster (x2) 18351 | -4/Factory | Entered Armory 18360 | -4/Armory | Spotted B-86 Titan 18457 | -4/Armory | Central database locked down 18501 | -4/Armory | Discovered exit to Research (range 24) 18548 | -4/Armory | Discovered exit to Research (range 13) 18555 | -4/Armory | Discovered new exit (range 4) 18558 | -4/Armory | Incoming investigation squad redirected 18558 | -4/Armory | Entered Lab 18558 | -4/Lab | Discovered exit to Research (range 9) 18562 | -4/Lab | Hidden lab's door opened automatically 18562 | -4/Lab | Sensor layout match revealed 18563 | -4/Lab | Gained access to the hidden lab's interior 18565 | -4/Lab | Destroyed 9 combat bots 18879 | -4/Lab | Found Alien Artifact 18879 | -4/Lab | Identified Integrated Mediator 18879 | -4/Lab | Installed Integrated Mediator, increased core attachment efficiency. 18888 | -4/Lab | Found Alien Artifact 18888 | -4/Lab | Identified Core Regenerator 18888 | -4/Lab | Used Core Regenerator, restored core integrity (+28) 18913 | -4/Lab | Found Prototype Protection 18915 | -4/Lab | Found Prototype Hackware 18929 | -4/Lab | Entered Research 18929 | -3/Research | Evolved 2 slots: Utility x2 18929 | -3/Research | Identified Med. Regenerative Plating 18930 | -3/Research | Identified Deep Network Scanner 18935 | -3/Research | Identified exit to DSF 18999 | -3/Research | Discovered new exit (range 12) 19053 | -3/Research | Entered DSF 19066 | -3/DSF | Discovered new exit (range 14) 19070 | -3/DSF | Entered Research 19070 | -2/Research | Warlord forces began assault on 0b10 19070 | -2/Research | Spotted B-90 Cyclops 19070 | -2/Research | Evolved 2 slots: Propulsion x1, Utility x1 19071 | -2/Research | Identified exit to Quarantine 19119 | -2/Research | Identified exit to Access 19171 | -2/Research | Spotted B-90 Cyclops 19173 | -2/Research | Met up with Warlord 19180 | -2/Research | Research machine network offline 19183 | -2/Research | Took control of God Mode 19183 | -2/Research | Attacked by Warlord forces 19184 | -2/Research | Attacked by Warlord 19184 | -2/Research | Spotted CB-MWW(K) 19221 | -2/Research | Entered Access 19221 | -1/Access | Evolved 2 slots: Propulsion x1, Utility x1 19234 | -1/Access | Identified exit to Command 19258 | -1/Access | Build established: Wizard-Scout 19265 | -1/Access | Discovered new exit (range 18) 19325 | -1/Access | Entered Command 19408 | -1/Command | Identified exit to Surface 19519 | -1/Command | Disengaged cave seal 19519 | -1/Command | Wild derelicts emerged from the dark tunnel 19565 | -1/Command | Spotted B-99 Colossus 19594 | -1/Command | Found Prototype Processor 19594 | -1/Command | Identified Exp. Armor Integrity Analyzer 19605 | -1/Command | Identified Wardrone Bay 19724 | -1/Command | Allies destroyed B-99 Colossus 19759 | -1/Command | Found Prototype Ballistic Gun 19759 | -1/Command | Identified Multirail 19808 | -1/Command | Spotted M Guard 19808 | -1/Command | Spotted M Guard 19827 | -1/Command | Spotted Combat Programmer 19831 | -1/Command | Spotted Combat Programmer 19849 | -1/Command | Destroyed Combat Programmer 19861 | -1/Command | System corruption reached 10% 19864 | -1/Command | Destroyed Combat Programmer 19913 | -1/Command | Spotted Striker 19917 | -1/Command | Spotted Striker 19919 | -1/Command | Spotted Executioner 19919 | -1/Command | Spotted Alpha 7 19919 | -1/Command | Spotted Alpha 7 19919 | -1/Command | Spotted Executioner 19919 | -1/Command | Spotted Executioner 19919 | -1/Command | Spotted B-99 Colossus 19920 | -1/Command | Spotted Executioner 19920 | -1/Command | Spotted B-99 Colossus 19936 | -1/Command | Core integrity fell below 50% 19940 | -1/Command | Core integrity fell below 20% 19941 | -1/Command | Destroyed by Striker with Plasma Lance Last Messages --------------- 19939_ Slug penetrates B-99 Colossus. 19939_ Penetrated by Slug. 19939_ Slug penetrates B-99 Colossus. 19939_ Slug penetrates Wall. 19939_ A bubble of rippling energy engulfs the area. 19939_ Field strength at 94. 19939_ Penetrated by Slug. 19939_ Slug penetrates Access Shell. 19939_ Field strength at 51. 19940_ B-99 Colossus activates siege mode. 19940_ Field strength at 69. 19940_ Penetrated by Slug. 19940_ Slug penetrates Access Shell. 19940_ Penetrated by Slug. 19940_ Slug penetrates Wall. 19940_ Knocked back. 19940_ Penetrated by Slug. 19940_ Slug penetrates B-99 Colossus. 19940_ Field strength at 43. 19941_ Field strength at 17. Map ----- +----------------------------------------------------+ | | | | | | | | | | | ?????????????????????????????????????????????????? | | ?????????????????????????????????????????????????? | | ?????????????????????????????????????????????????? | | ?????????????????????????????????????????????????? | | ?????????????????????????????????????????????????? | | ???????########??????????????????????????????????? | | ???????# ] ??????????????????????????????????? | | ???????# ??????????????????????????????????? | | ???????# !! ??????????????????????????????????? | | ???????# !! #?????????????????????????????????? | | ???????# !! #?????????????????????????????????? | | ???????# #?????????????????????????????????? | | ??????# #??????????????????#??????????????? | | ?????# #???????????######;######?????????? | | ????# | #?######???# #?????????? | | ???# ### #### #?????????? | | ??# # # #?????????? | | ???## E %BB " #?????????? | | ?## ??# % E ^BB #?????????? | | ## ## 7 E!^% "< #?????????? | | =% 7!KK@ "" #?????????? | | ??# # |% % E BB #?????????? | | ???? ????# *#% % BB """ #?????????? | | ??????#### # # ; # ? #?????????? | | ??????+ ####"######## #?????????? | | ??????###" #??##???????? #?????????? | | ????????## #?????????????############?????????? | | ?????????# % #??????????????????????????????????? | | ?????????# #??????????????????????????????????? | | ????????#" % #????###?######????????????????????? | | ????????## ## ????????????????????? | | ?????????# ## #???????????????????? | | ?????????# #? #???????????????????? | | ?????????# #? #???????????????????? | | ?????????# #?? #???????????????????? | | ?????????# *#?? #???????????????????? | | ?????????# =%#?? #???????????????????? | | ####+##### ## #???????????????????? | | % # #???????????????????? | | % " #???????????????????? | | #######+##### # #???????????????????? | | ????# ## #####/##+##/##????????????????????? | | ????# ## #???# #?????????????????????? | | ????# + #???# #?????????????????????? | | ????# " ##* #???# #?????????????????????? | +----------------------------------------------------+ Best States ------------- Heat Dissipation 86 Coolant Potential 120 Energy Generation 29 Energy Capacity 365 Matter Stores 300 Matter Capacity 300 Sight Range 20 Terrain Scan Range 24 Terrain Scan Density 210 Jamming Range 14 Corruption Block 15 Armor Coverage 1025 Resistance: KI 50 Resistance: TH 20 Resistance: EX 20 Resistance: EM 20 Resistance: I 20 Resistance: S 20 Resistance: P 20 Power Shielding 66 Utility Shielding 66 Point Defense Rating 160 Weapon Cycling 15 Evasion (%) 65 Target Analysis 8 Core Analysis 6 Recoil Reduction 4 Offensive Hacking 61 Defensive Hacking 24 Authchip Count 1 Trap Extractor Capacity 6 Item Schematics ----------------- Adv. Weight Redist. System | -8/Materials | Extracted Hcp. Storage Unit | -8/Materials | Extracted Cryofiber Web | -8/Materials | Extracted Visual Processing Unit | -8/Materials | Extracted Hvy. Mace | -8/Materials | Extracted Impact Mace | -7/Factory | Extracted EM Shotgun | -7/Factory | Extracted Beam Rifle | -7/Factory | Extracted Imp. Terrain Scan Processor | -7/Factory | Extracted Salvage Targeting Computer | -7/Factory | Extracted Arc Projector | -7/Factory | Extracted Mic. Fission Core | -7/Factory | Hacked Hardlight Generator | -7/Factory | Extracted Imp. EM Pulse Cannon | -7/Factory | Extracted Imp. Carbon-fiber Leg | -7/Factory | Extracted Gravmag System | -7/Factory | Extracted Plasma Cutter | -7/Factory | Extracted Combat Drone Bay | -7/Data Miner | Free Lgt. Regenerative Plating | -7/Data Miner | Free Cld. Cesium-ion Thruster | -7/Data Miner | Free Gravity Neutralizer | -7/Data Miner | Free Imp. Heavy Laser | -7/Data Miner | Free Field Propulsion Drive | -7/Data Miner | Free Adv. System Restoration Module | -7/Data Miner | Free Adv. Surge Thruster | -7/Data Miner | Free Disruptor Cannon | -7/Data Miner | Free EM Disruption Field | -6/Factory | Extracted Imp. Cooling System | -6/Factory | Extracted Imp. Cesium-ion Thruster | -5/Factory | Scanalyzed Powered Armor | -5/Factory | Scanalyzed Imp. Linear Gravjet | -4/Factory | Hacked Hardcell Cannon | -4/Armory | Hacked Hvy. Gauss Cannon | -3/Research | Extracted Imp. Heavy Armor Plating | -3/Research | Extracted System Shield | -3/Research | Extracted Robot Schematics ------------------ S-27 Virus | -7/Data Miner | Free H-55 Commando | -7/Data Miner | Free H-66 Slayer | -7/Data Miner | Free B-48 Gladiator | -7/Data Miner | Free M-22 Extractor | -7/Data Miner | Free Y-54 Guardian | -7/Data Miner | Free L-41 Fighter | -7/Data Miner | Free C-35 Carver | -4/Factory | Hacked Fabricated ------------ Mic. Fission Core | x2 | -7/Factory | Authchip Adv. Surge Thruster | x2 | -4/Factory | Authchip Alien Tech Used ----------------- Integrated Mediator Core Regenerator Achievements -------------- Godhack Challenges ------------ None Game ------ Seed ShadingLauncherNanosword Manual? 0 Play Time 02:32:06 Cumulative 214.6 hours Start 2022.05.23 @ 00:48:27 End 2022.05.23 @ 03:19:45 Sessions 1 Manual Loads 0 Difficulty Adventurer Special Mode None Game No. 109 Rogue 2 Adventurer 107 Explorer 0 Win Type - Total 15 Types 8/1/1/1/1/0/1/1/1 Lore% 89 Gallery% 86 Achievement% 77 Wizard Run 0 Options --------- ASCII 0 Keyboard 1 Movement Numpad Keybinds 0 Fullscreen 2 Font 18/SmallcapsGlow Map View 76x50 Tactical HUD 1 Map Filters NONE Filters NONE Steam 1 RUN: 3d4cd5a0-806c-472b-a256-c03514bf75a2